[Event "Early-Titled-Tuesday-Blitz-March-19-2024"]
[Site "Chess.com"]
[Date "2024.03.19"]
[Round "9"]
[White "ChessFanNM"]
[Black "nicolasbatista3"]
[Result "0-1"]
[WhiteElo "2272"]
[BlackElo "2480"]
[TimeControl "180+1"]
[EndTime "9:45:27 PDT"]
[Termination "nicolasbatista3 won on time"]

1. e4 {[%clk 0:02:27.5]} 1... c6 {[%clk 0:02:57.7]} 2. d4 {[%clk 0:02:26.9]}
2... d5 {[%clk 0:02:58.6]} 3. exd5 {[%clk 0:02:26.5]} 3... cxd5 {[%clk
0:02:59.5]} 4. Nf3 {[%clk 0:02:25.3]} 4... Nc6 {[%clk 0:02:59.6]} 5. c4 {[%clk
0:02:21.7]} 5... Nf6 {[%clk 0:02:57.3]} 6. Nc3 {[%clk 0:02:18.8]} 6... g6 {[%clk
0:02:56.5]} 7. cxd5 {[%clk 0:02:18]} 7... Nxd5 {[%clk 0:02:56.1]} 8. Qb3 {[%clk
0:02:15.5]} 8... Nxc3 {[%clk 0:02:52.2]} 9. Bc4 {[%clk 0:02:14.9]} 9... e6
{[%clk 0:02:26.6]} 10. bxc3 {[%clk 0:02:14.1]} 10... Bg7 {[%clk 0:02:26]} 11.
Ba3 {[%clk 0:02:13.3]} 11... Bd7 {[%clk 0:02:19.7]} 12. Be2 {[%clk 0:02:05.7]}
12... Qb6 {[%clk 0:02:12.5]} 13. Qd1 {[%clk 0:01:42.2]} 13... Qa5 {[%clk
0:02:08.8]} 14. Qb3 {[%clk 0:01:18.3]} 14... Nxd4 {[%clk 0:02:05.8]} 15. Nxd4
{[%clk 0:01:15.6]} 15... Bxd4 {[%clk 0:02:06.1]} 16. O-O {[%clk 0:01:15.5]}
16... Bc5 {[%clk 0:01:38.6]} 17. Qxb7 {[%clk 0:01:03.1]} 17... Rc8 {[%clk
0:01:27.1]} 18. Rad1 {[%clk 0:00:53]} 18... Qc7 {[%clk 0:00:59.5]} 19. Qb3
{[%clk 0:00:40.7]} 19... Bxa3 {[%clk 0:00:43.7]} 20. Qxa3 {[%clk 0:00:34.7]}
20... Qc5 {[%clk 0:00:38.3]} 21. Qa6 {[%clk 0:00:19.9]} 21... Rc7 {[%clk
0:00:29.7]} 22. Rd4 {[%clk 0:00:16.1]} 22... O-O {[%clk 0:00:25]} 23. Rfd1
{[%clk 0:00:16.3]} 23... Bc6 {[%clk 0:00:24.1]} 24. R4d3 {[%clk 0:00:13.9]}
24... Bb5 {[%clk 0:00:23.6]} 25. Qa5 {[%clk 0:00:13.9]} 25... Bxd3 {[%clk
0:00:23.8]} 26. Qxc5 {[%clk 0:00:13.9]} 26... Rxc5 {[%clk 0:00:24.7]} 27. Rxd3
{[%clk 0:00:13.9]} 27... Rfc8 {[%clk 0:00:24.1]} 28. h4 {[%clk 0:00:13.6]} 28...
Rxc3 {[%clk 0:00:24.2]} 29. Rd7 {[%clk 0:00:13.7]} 29... Ra3 {[%clk 0:00:20.7]}
30. h5 {[%clk 0:00:13]} 30... Rxa2 {[%clk 0:00:19.3]} 31. Bf3 {[%clk 0:00:12.2]}
31... a5 {[%clk 0:00:18.2]} 32. h6 {[%clk 0:00:12.3]} 32... a4 {[%clk
0:00:18.5]} 33. Bg4 {[%clk 0:00:08.1]} 33... a3 {[%clk 0:00:17.6]} 34. Ra7
{[%clk 0:00:07.5]} 34... Ra1+ {[%clk 0:00:16.4]} 35. Kh2 {[%clk 0:00:07.7]}
35... a2 {[%clk 0:00:15.8]} 36. Bf3 {[%clk 0:00:04.3]} 36... f5 {[%clk
0:00:11.1]} 37. g4 {[%clk 0:00:04.3]} 37... Rcc1 {[%clk 0:00:09.7]} 38. gxf5
{[%clk 0:00:04]} 38... gxf5 {[%clk 0:00:08.9]} 39. Rg7+ {[%clk 0:00:03.6]} 39...
Kf8 {[%clk 0:00:09.1]} 40. Rxh7 {[%clk 0:00:03.4]} 40... Rh1+ {[%clk 0:00:08.9]}
41. Bxh1 {[%clk 0:00:02.4]} 41... Rxh1+ {[%clk 0:00:09.6]} 42. Kxh1 {[%clk
0:00:02.2]} 42... a1=Q+ {[%clk 0:00:10.5]} 43. Kg2 {[%clk 0:00:02.3]} 43... Qf6
{[%clk 0:00:09.6]} 0-1

[Event "Early-Titled-Tuesday-Blitz-March-19-2024"]
[Site "Chess.com"]
[Date "2024.03.19"]
[Round "9"]
[White "Felix-Rose"]
[Black "balack95"]
[Result "1-0"]
[WhiteElo "2281"]
[BlackElo "2457"]
[TimeControl "180+1"]
[EndTime "9:45:30 PDT"]
[Termination "Felix-Rose won by resignation"]

1. e4 {[%clk 0:03:00.1]} 1... c5 {[%clk 0:02:58.5]} 2. Nf3 {[%clk 0:03:00.4]}
2... e6 {[%clk 0:02:57.8]} 3. d4 {[%clk 0:03:00.6]} 3... cxd4 {[%clk 0:02:58]}
4. Nxd4 {[%clk 0:03:01.5]} 4... Nc6 {[%clk 0:02:58.7]} 5. Nc3 {[%clk 0:03:01.8]}
5... Qc7 {[%clk 0:02:59.2]} 6. Be3 {[%clk 0:03:01.7]} 6... a6 {[%clk 0:02:59.5]}
7. Qf3 {[%clk 0:03:02]} 7... h5 {[%clk 0:03:00]} 8. h4 {[%clk 0:02:54.3]} 8...
Nf6 {[%clk 0:02:56.6]} 9. O-O-O {[%clk 0:02:51.8]} 9... Ng4 {[%clk 0:02:52.7]}
10. Bf4 {[%clk 0:02:41.1]} 10... e5 {[%clk 0:02:33.5]} 11. Bg3 {[%clk
0:02:36.2]} 11... d6 {[%clk 0:02:26.3]} 12. Nd5 {[%clk 0:02:31.3]} 12... Qd8
{[%clk 0:02:26.2]} 13. Nf5 {[%clk 0:02:28.4]} 13... Bxf5 {[%clk 0:02:18.6]} 14.
Qxf5 {[%clk 0:02:25.9]} 14... Be7 {[%clk 0:02:18.1]} 15. Be2 {[%clk 0:02:08.2]}
15... Nd4 {[%clk 0:02:14.2]} 16. Rxd4 {[%clk 0:02:05.6]} 16... exd4 {[%clk
0:02:15.1]} 17. Bxg4 {[%clk 0:02:05.3]} 17... hxg4 {[%clk 0:02:16]} 18. Qxg4
{[%clk 0:02:04.9]} 18... Bf6 {[%clk 0:02:12]} 19. h5 {[%clk 0:01:48.7]} 19... g6
{[%clk 0:02:00.5]} 20. Kb1 {[%clk 0:01:43]} 20... Rxh5 {[%clk 0:01:54.5]} 21.
Rxh5 {[%clk 0:01:42.6]} 21... gxh5 {[%clk 0:01:55.1]} 22. Qg8+ {[%clk
0:01:40.7]} 22... Kd7 {[%clk 0:01:55.7]} 23. Qxf7+ {[%clk 0:01:37.8]} 23... Be7
{[%clk 0:01:56.3]} 24. Bh4 {[%clk 0:01:36.8]} 24... Qf8 {[%clk 0:01:42]} 25. Qh7
{[%clk 0:01:27.4]} 25... Re8 {[%clk 0:01:39.5]} 26. Nf6+ {[%clk 0:01:15.2]}
26... Kd8 {[%clk 0:01:34.1]} 27. Nxe8 {[%clk 0:01:08.8]} 27... Bxh4 {[%clk
0:01:34.6]} 28. Ng7 {[%clk 0:00:51.9]} 28... Qxf2 {[%clk 0:01:23.5]} 29. Qg8+
{[%clk 0:00:29.6]} 29... Kd7 {[%clk 0:01:16.7]} 30. Qe6+ {[%clk 0:00:27.7]}
30... Kc6 {[%clk 0:01:15.4]} 31. a4 {[%clk 0:00:21.6]} 31... Qf6 {[%clk
0:00:58.9]} 32. Qd5+ {[%clk 0:00:21.2]} 32... Kb6 {[%clk 0:00:53.8]} 33. a5+
{[%clk 0:00:16.9]} 33... Ka7 {[%clk 0:00:53.2]} 34. Nf5 {[%clk 0:00:15.8]} 34...
Be1 {[%clk 0:00:44.1]} 35. Nxd6 {[%clk 0:00:12.8]} 35... Qg7 {[%clk 0:00:39.6]}
36. Qc5+ {[%clk 0:00:10.7]} 36... Kb8 {[%clk 0:00:36.9]} 37. Qc8+ {[%clk
0:00:09.7]} 37... Ka7 {[%clk 0:00:37.4]} 38. Qc5+ {[%clk 0:00:08.8]} 38... Kb8
{[%clk 0:00:37.3]} 39. e5 {[%clk 0:00:09]} 39... Qxg2 {[%clk 0:00:20.9]} 40.
Qxd4 {[%clk 0:00:06.7]} 40... Bf2 {[%clk 0:00:19.4]} 41. Qc4 {[%clk 0:00:06.6]}
41... Qh1+ {[%clk 0:00:17.6]} 42. Ka2 {[%clk 0:00:06.8]} 42... Qc6 {[%clk
0:00:18.5]} 43. Qg8+ {[%clk 0:00:06.6]} 43... Ka7 {[%clk 0:00:17.1]} 44. Nc8+
{[%clk 0:00:06.9]} 44... Kb8 {[%clk 0:00:17.7]} 45. Nb6+ {[%clk 0:00:07.5]} 1-0

[Event "Early-Titled-Tuesday-Blitz-March-19-2024"]
[Site "Chess.com"]
[Date "2024.03.19"]
[Round "9"]
[White "GM_dmitrij"]
[Black "shimastream"]
[Result "1-0"]
[WhiteElo "3095"]
[BlackElo "3009"]
[TimeControl "180+1"]
[EndTime "9:45:36 PDT"]
[Termination "GM_dmitrij won on time"]

1. d4 {[%clk 0:03:00.9]} 1... b6 {[%clk 0:02:59.6]} 2. e4 {[%clk 0:03:00.2]}
2... Bb7 {[%clk 0:03:00.2]} 3. Nc3 {[%clk 0:03:00.3]} 3... e6 {[%clk 0:03:00.4]}
4. Bd3 {[%clk 0:03:00.5]} 4... Nf6 {[%clk 0:02:58]} 5. Nge2 {[%clk 0:02:57.3]}
5... c5 {[%clk 0:02:53.9]} 6. d5 {[%clk 0:02:56.5]} 6... exd5 {[%clk 0:02:43]}
7. exd5 {[%clk 0:02:57.4]} 7... Nxd5 {[%clk 0:02:43.7]} 8. Nxd5 {[%clk 0:02:53]}
8... Bxd5 {[%clk 0:02:44.6]} 9. Nf4 {[%clk 0:02:53.4]} 9... Bb7 {[%clk
0:02:26.9]} 10. O-O {[%clk 0:02:46.3]} 10... Be7 {[%clk 0:02:23.2]} 11. Qh5
{[%clk 0:02:35.3]} 11... Nc6 {[%clk 0:02:00.8]} 12. Re1 {[%clk 0:02:30.3]} 12...
Nb4 {[%clk 0:01:31.2]} 13. Bf5 {[%clk 0:02:10.2]} 13... Nd5 {[%clk 0:00:57.2]}
14. Nxd5 {[%clk 0:01:10.8]} 14... Bxd5 {[%clk 0:00:58.1]} 15. Bf4 {[%clk
0:01:11.4]} 15... Be6 {[%clk 0:00:55.3]} 16. Bxe6 {[%clk 0:00:49.8]} 16... dxe6
{[%clk 0:00:56.2]} 17. Rxe6 {[%clk 0:00:39.1]} 17... O-O {[%clk 0:00:56.2]} 18.
Re3 {[%clk 0:00:39.8]} 18... Qd4 {[%clk 0:00:27.6]} 19. Be5 {[%clk 0:00:20.3]}
19... Qh4 {[%clk 0:00:27.4]} 20. Qf5 {[%clk 0:00:18.1]} 20... Qg5 {[%clk
0:00:18.8]} 21. Qf3 {[%clk 0:00:13.9]} 21... Rad8 {[%clk 0:00:09]} 22. Rae1
{[%clk 0:00:12.9]} 22... Rd7 {[%clk 0:00:09.7]} 23. Qc6 {[%clk 0:00:10.8]} 23...
Rdd8 {[%clk 0:00:02.8]} 24. h3 {[%clk 0:00:08.2]} 24... Bf6 {[%clk 0:00:02.6]}
25. Rg3 {[%clk 0:00:05.6]} 25... Qxe5 {[%clk 0:00:02.4]} 26. Rxe5 {[%clk
0:00:05.9]} 26... Bxe5 {[%clk 0:00:03.3]} 27. Rd3 {[%clk 0:00:04.1]} 27... Rxd3
{[%clk 0:00:01.6]} 28. cxd3 {[%clk 0:00:05]} 28... Bxb2 {[%clk 0:00:01.8]} 29.
Qb7 {[%clk 0:00:04.7]} 29... Bd4 {[%clk 0:00:01.6]} 30. Qxa7 {[%clk 0:00:05.1]}
30... b5 {[%clk 0:00:02.3]} 31. a3 {[%clk 0:00:04.1]} 31... g6 {[%clk 0:00:02]}
32. Qb7 {[%clk 0:00:03.8]} 32... Re8 {[%clk 0:00:01.7]} 33. Kf1 {[%clk
0:00:03.9]} 33... Re5 {[%clk 0:00:01.5]} 34. Qxb5 {[%clk 0:00:03.7]} 34... Rf5
{[%clk 0:00:02]} 35. f3 {[%clk 0:00:02.8]} 35... Re5 {[%clk 0:00:02.6]} 36. a4
{[%clk 0:00:02.3]} 36... Bc3 {[%clk 0:00:02.3]} 37. a5 {[%clk 0:00:02.1]} 37...
Re1+ {[%clk 0:00:02.6]} 38. Kf2 {[%clk 0:00:02.7]} 38... Rc1 {[%clk 0:00:02.7]}
39. Qb8+ {[%clk 0:00:02.3]} 39... Kg7 {[%clk 0:00:02.6]} 40. a6 {[%clk
0:00:02.5]} 40... Bd4+ {[%clk 0:00:02]} 41. Ke2 {[%clk 0:00:03.1]} 41... Rc2+
{[%clk 0:00:02.1]} 42. Kd1 {[%clk 0:00:03.6]} 42... Ra2 {[%clk 0:00:01.3]} 43.
a7 {[%clk 0:00:04.3]} 43... Ra1+ {[%clk 0:00:01.7]} 44. Kc2 {[%clk 0:00:04.5]}
44... Ra2+ {[%clk 0:00:02.2]} 45. Kb3 {[%clk 0:00:03.6]} 45... Rb2+ {[%clk
0:00:02.4]} 46. Kc4 {[%clk 0:00:04.2]} 46... Rc2+ {[%clk 0:00:02]} 47. Kd5
{[%clk 0:00:04.5]} 1-0

[Event "Early-Titled-Tuesday-Blitz-March-19-2024"]
[Site "Chess.com"]
[Date "2024.03.19"]
[Round "9"]
[White "noblerone"]
[Black "hitaman"]
[Result "0-1"]
[WhiteElo "2548"]
[BlackElo "2698"]
[TimeControl "180+1"]
[EndTime "9:45:40 PDT"]
[Termination "hitaman won on time"]

1. d4 {[%clk 0:03:00.9]} 1... d5 {[%clk 0:02:59.4]} 2. c4 {[%clk 0:02:58.1]}
2... e6 {[%clk 0:02:59.3]} 3. Nc3 {[%clk 0:02:58]} 3... Nf6 {[%clk 0:02:58.3]}
4. cxd5 {[%clk 0:02:57.3]} 4... exd5 {[%clk 0:02:59.2]} 5. Bg5 {[%clk 0:02:56]}
5... c6 {[%clk 0:02:56.1]} 6. e3 {[%clk 0:02:54.2]} 6... h6 {[%clk 0:02:47.8]}
7. Bh4 {[%clk 0:02:54.2]} 7... Bd6 {[%clk 0:02:47.3]} 8. Bd3 {[%clk 0:02:52.9]}
8... O-O {[%clk 0:02:46.6]} 9. Nf3 {[%clk 0:02:51]} 9... Re8 {[%clk 0:02:46.5]}
10. O-O {[%clk 0:02:49.3]} 10... Nbd7 {[%clk 0:02:43.2]} 11. Qc2 {[%clk
0:02:44.6]} 11... Nf8 {[%clk 0:02:30.2]} 12. Rab1 {[%clk 0:02:05]} 12... a5
{[%clk 0:02:25.4]} 13. a3 {[%clk 0:02:04.4]} 13... Bg4 {[%clk 0:02:24.8]} 14.
Nd2 {[%clk 0:01:58.7]} 14... Bh5 {[%clk 0:02:14.1]} 15. Bg3 {[%clk 0:01:47.8]}
15... Bxg3 {[%clk 0:02:12]} 16. hxg3 {[%clk 0:01:48.7]} 16... Bg6 {[%clk
0:02:11.5]} 17. Na4 {[%clk 0:01:30.2]} 17... Bxd3 {[%clk 0:02:05.6]} 18. Qxd3
{[%clk 0:01:31.1]} 18... Ne6 {[%clk 0:02:02.6]} 19. Rfc1 {[%clk 0:01:25.7]}
19... Ng5 {[%clk 0:01:40.9]} 20. Nc5 {[%clk 0:01:19.8]} 20... Qe7 {[%clk
0:01:27.8]} 21. b4 {[%clk 0:01:12.5]} 21... axb4 {[%clk 0:01:27.4]} 22. axb4
{[%clk 0:01:13.4]} 22... Ra2 {[%clk 0:01:21]} 23. Ra1 {[%clk 0:00:57.4]} 23...
Rea8 {[%clk 0:01:13.6]} 24. Rxa2 {[%clk 0:00:34.7]} 24... Rxa2 {[%clk
0:01:14.5]} 25. Nf3 {[%clk 0:00:20.9]} 25... Nge4 {[%clk 0:01:08.3]} 26. Nxe4
{[%clk 0:00:17.4]} 26... dxe4 {[%clk 0:01:05.4]} 27. Qb3 {[%clk 0:00:17.4]}
27... Qe6 {[%clk 0:00:54.1]} 28. Qxe6 {[%clk 0:00:16.3]} 28... fxe6 {[%clk
0:00:55]} 29. Ne5 {[%clk 0:00:16.3]} 29... Rb2 {[%clk 0:00:53.4]} 30. Ra1 {[%clk
0:00:14.7]} 30... Rxb4 {[%clk 0:00:52.2]} 31. Ra8+ {[%clk 0:00:15.6]} 31... Kh7
{[%clk 0:00:52.6]} 32. Rc8 {[%clk 0:00:15.2]} 32... Rb1+ {[%clk 0:00:46.3]} 33.
Kh2 {[%clk 0:00:15.4]} 33... Rf1 {[%clk 0:00:47.2]} 34. f3 {[%clk 0:00:14.2]}
34... Re1 {[%clk 0:00:43.4]} 35. Rc7 {[%clk 0:00:06.8]} 35... b5 {[%clk
0:00:38.2]} 36. Rxc6 {[%clk 0:00:05.7]} 36... exf3 {[%clk 0:00:38.5]} 37. gxf3
{[%clk 0:00:04.4]} 37... Rxe3 {[%clk 0:00:39.4]} 38. Rxe6 {[%clk 0:00:04.2]}
38... b4 {[%clk 0:00:38.3]} 39. Rb6 {[%clk 0:00:04.5]} 39... Nd5 {[%clk
0:00:37.1]} 40. Rb7 {[%clk 0:00:03.4]} 40... b3 {[%clk 0:00:35.7]} 41. f4 {[%clk
0:00:02.7]} 41... Re2+ {[%clk 0:00:35.5]} 42. Kh3 {[%clk 0:00:02.2]} 42... b2
{[%clk 0:00:35.6]} 43. f5 {[%clk 0:00:02.1]} 43... h5 {[%clk 0:00:18.3]} 44. Ng6
{[%clk 0:00:01.6]} 44... Kh6 {[%clk 0:00:16]} 45. g4 {[%clk 0:00:01.6]} 45...
hxg4+ {[%clk 0:00:14.3]} 46. Kxg4 {[%clk 0:00:02.5]} 46... Nc3 {[%clk
0:00:11.8]} 47. Rb8 {[%clk 0:00:02.8]} 47... Re4+ {[%clk 0:00:08.9]} 48. Kf3
{[%clk 0:00:02.8]} 48... Rxd4 {[%clk 0:00:04.1]} 49. Rh8+ {[%clk 0:00:02.2]}
49... Kg5 {[%clk 0:00:03.9]} 50. Rh1 {[%clk 0:00:02.2]} 50... b1=Q {[%clk
0:00:03.8]} 0-1

[Event "Early-Titled-Tuesday-Blitz-March-19-2024"]
[Site "Chess.com"]
[Date "2024.03.19"]
[Round "9"]
[White "profedechess93"]
[Black "Preobrazhenska_D2011"]
[Result "1-0"]
[WhiteElo "2647"]
[BlackElo "2479"]
[TimeControl "180+1"]
[EndTime "9:45:40 PDT"]
[Termination "profedechess93 won by checkmate"]

1. e4 {[%clk 0:03:00.9]} 1... c5 {[%clk 0:02:59.6]} 2. Nf3 {[%clk 0:03:01]} 2...
d6 {[%clk 0:02:59.8]} 3. Bb5+ {[%clk 0:03:01.6]} 3... Nd7 {[%clk 0:02:55.8]} 4.
d4 {[%clk 0:03:00.6]} 4... cxd4 {[%clk 0:02:50.6]} 5. Qxd4 {[%clk 0:03:01.5]}
5... a6 {[%clk 0:02:47.6]} 6. Bxd7+ {[%clk 0:03:01.7]} 6... Qxd7 {[%clk
0:02:45.7]} 7. Nc3 {[%clk 0:02:56.7]} 7... e5 {[%clk 0:02:06.6]} 8. Qd3 {[%clk
0:02:55.3]} 8... Qc6 {[%clk 0:02:02.8]} 9. Bg5 {[%clk 0:02:48.2]} 9... h6 {[%clk
0:01:59.1]} 10. Nxe5 {[%clk 0:01:46.7]} 10... Qc5 {[%clk 0:01:08.6]} 11. Be3
{[%clk 0:01:45.1]} 11... Qxe5 {[%clk 0:01:00.7]} 12. Nd5 {[%clk 0:01:45.3]}
12... Rb8 {[%clk 0:00:24.4]} 13. Ba7 {[%clk 0:01:33.4]} 13... Nf6 {[%clk
0:00:10.6]} 14. Nxf6+ {[%clk 0:01:17.2]} 14... Qxf6 {[%clk 0:00:11.5]} 15. Bxb8
{[%clk 0:01:17.5]} 15... Be7 {[%clk 0:00:08.2]} 16. O-O-O {[%clk 0:01:15]} 16...
O-O {[%clk 0:00:08.2]} 17. Ba7 {[%clk 0:01:08]} 17... Be6 {[%clk 0:00:06]} 18.
Kb1 {[%clk 0:01:03.3]} 18... Rc8 {[%clk 0:00:05.2]} 19. Bd4 {[%clk 0:01:03.6]}
19... Qg6 {[%clk 0:00:05.6]} 20. f4 {[%clk 0:00:59.7]} 20... Bc4 {[%clk
0:00:06.1]} 21. Qf3 {[%clk 0:00:57.1]} 21... Bf6 {[%clk 0:00:05.7]} 22. f5
{[%clk 0:00:54]} 22... Qh7 {[%clk 0:00:03.9]} 23. Bxf6 {[%clk 0:00:53.4]} 23...
gxf6 {[%clk 0:00:04.8]} 24. Rxd6 {[%clk 0:00:50.8]} 24... Qg7 {[%clk 0:00:05.2]}
25. Qg3 {[%clk 0:00:44.3]} 25... Re8 {[%clk 0:00:05.3]} 26. Re1 {[%clk
0:00:41.5]} 26... Kh7 {[%clk 0:00:04.3]} 27. Qxg7+ {[%clk 0:00:35.7]} 27... Kxg7
{[%clk 0:00:05.1]} 28. a4 {[%clk 0:00:36.3]} 28... b5 {[%clk 0:00:05]} 29. b3
{[%clk 0:00:35.7]} 29... bxa4 {[%clk 0:00:02.1]} 30. bxc4 {[%clk 0:00:35.6]}
30... Rb8+ {[%clk 0:00:02.6]} 31. Ka2 {[%clk 0:00:35.1]} 31... Rb4 {[%clk
0:00:03.3]} 32. Rc6 {[%clk 0:00:35]} 32... a5 {[%clk 0:00:03.6]} 33. Ka3 {[%clk
0:00:34]} 33... Rb8 {[%clk 0:00:02.7]} 34. Kxa4 {[%clk 0:00:33.3]} 34... Rb2
{[%clk 0:00:03.1]} 35. Re2 {[%clk 0:00:32.5]} 35... Ra2+ {[%clk 0:00:03.4]} 36.
Kb5 {[%clk 0:00:32.5]} 36... a4 {[%clk 0:00:03.3]} 37. Ra6 {[%clk 0:00:32.1]}
37... a3 {[%clk 0:00:03.9]} 38. Kb4 {[%clk 0:00:32.4]} 38... Rb2+ {[%clk
0:00:02.7]} 39. Kxa3 {[%clk 0:00:32.5]} 39... Rb1 {[%clk 0:00:02.4]} 40. Rd6
{[%clk 0:00:28.8]} 40... Ra1+ {[%clk 0:00:02.6]} 41. Kb4 {[%clk 0:00:27.5]}
41... Kf8 {[%clk 0:00:02.9]} 42. Rd7 {[%clk 0:00:26.8]} 42... Ke8 {[%clk
0:00:03.1]} 43. Red2 {[%clk 0:00:26.9]} 43... Rb1+ {[%clk 0:00:03.7]} 44. Kc5
{[%clk 0:00:26.6]} 44... Kf8 {[%clk 0:00:04.4]} 45. Kd6 {[%clk 0:00:24]} 45...
Rb4 {[%clk 0:00:03.7]} 46. c5 {[%clk 0:00:23.9]} 46... Ke8 {[%clk 0:00:03.5]}
47. c6 {[%clk 0:00:23.5]} 47... Rb6 {[%clk 0:00:03.9]} 48. Kc7 {[%clk
0:00:23.2]} 48... Ra6 {[%clk 0:00:02.6]} 49. Rd8+ {[%clk 0:00:23.3]} 49... Ke7
{[%clk 0:00:03.3]} 50. R2d7# {[%clk 0:00:24]} 1-0

[Event "Early-Titled-Tuesday-Blitz-March-19-2024"]
[Site "Chess.com"]
[Date "2024.03.19"]
[Round "9"]
[White "Ural_bogatyr"]
[Black "Kirill_Klukin"]
[Result "1-0"]
[WhiteElo "2625"]
[BlackElo "2782"]
[TimeControl "180+1"]
[EndTime "9:45:45 PDT"]
[Termination "Ural_bogatyr won by resignation"]

1. d4 {[%clk 0:02:56.6]} 1... d5 {[%clk 0:02:51]} 2. Nc3 {[%clk 0:02:52.8]} 2...
Nf6 {[%clk 0:02:50.4]} 3. Bf4 {[%clk 0:02:53.2]} 3... a6 {[%clk 0:02:50.7]} 4.
e3 {[%clk 0:02:53.2]} 4... e6 {[%clk 0:02:50.6]} 5. g4 {[%clk 0:02:52.1]} 5...
c5 {[%clk 0:02:50.8]} 6. g5 {[%clk 0:02:52.1]} 6... Nfd7 {[%clk 0:02:50.8]} 7.
Nf3 {[%clk 0:02:51.8]} 7... Nc6 {[%clk 0:02:51.2]} 8. h4 {[%clk 0:02:51.3]} 8...
b5 {[%clk 0:02:51.5]} 9. Bh3 {[%clk 0:02:49.9]} 9... Qb6 {[%clk 0:02:48.2]} 10.
Ne2 {[%clk 0:02:49.8]} 10... Bb7 {[%clk 0:02:43.6]} 11. h5 {[%clk 0:02:47.1]}
11... g6 {[%clk 0:02:42.7]} 12. Ng3 {[%clk 0:02:44.2]} 12... Be7 {[%clk
0:02:36.2]} 13. Kf1 {[%clk 0:02:42.6]} 13... b4 {[%clk 0:02:31.8]} 14. Kg2
{[%clk 0:02:42]} 14... Rf8 {[%clk 0:02:22.3]} 15. hxg6 {[%clk 0:02:40]} 15...
hxg6 {[%clk 0:02:22.5]} 16. Bg4 {[%clk 0:02:38]} 16... a5 {[%clk 0:02:22.4]} 17.
Rh7 {[%clk 0:02:29.3]} 17... Bd8 {[%clk 0:01:59]} 18. c3 {[%clk 0:02:09.9]}
18... Bc7 {[%clk 0:01:57.4]} 19. Bxc7 {[%clk 0:02:02.2]} 19... Qxc7 {[%clk
0:01:57.7]} 20. Qc2 {[%clk 0:01:54.9]} 20... O-O-O {[%clk 0:01:53]} 21. Rah1
{[%clk 0:01:54.2]} 21... Kb8 {[%clk 0:01:53]} 22. Rg7 {[%clk 0:01:48.4]} 22...
Rc8 {[%clk 0:01:37]} 23. Rhh7 {[%clk 0:01:46.3]} 23... Nd8 {[%clk 0:01:37.4]}
24. a3 {[%clk 0:01:39.9]} 24... bxa3 {[%clk 0:01:26.5]} 25. bxa3 {[%clk
0:01:39.1]} 25... cxd4 {[%clk 0:01:27.2]} 26. exd4 {[%clk 0:01:36.9]} 26... Qxc3
{[%clk 0:01:25.5]} 27. Qb1 {[%clk 0:01:34.5]} 27... Qc2 {[%clk 0:01:10.3]} 28.
Qb5 {[%clk 0:01:32.1]} 28... Qc7 {[%clk 0:00:57.4]} 29. Nf1 {[%clk 0:01:29]}
29... Nb6 {[%clk 0:00:48.8]} 30. Qxa5 {[%clk 0:01:22.9]} 30... Nc4 {[%clk
0:00:48.8]} 31. Qb4 {[%clk 0:01:23.2]} 31... Qf4 {[%clk 0:00:46.3]} 32. Rh4
{[%clk 0:01:15.7]} 32... Nc6 {[%clk 0:00:41.9]} 33. Qc3 {[%clk 0:01:08.8]} 33...
Qd6 {[%clk 0:00:41.7]} 34. Rhh7 {[%clk 0:01:03.1]} 34... Rc7 {[%clk 0:00:34.2]}
35. a4 {[%clk 0:00:53.5]} 35... Nd8 {[%clk 0:00:29.8]} 36. Qb3 {[%clk
0:00:49.4]} 36... Ka8 {[%clk 0:00:28.7]} 37. Ne3 {[%clk 0:00:47.4]} 37... Qb6
{[%clk 0:00:22.6]} 38. Qxb6 {[%clk 0:00:43.2]} 38... Nxb6 {[%clk 0:00:23.5]} 39.
Ne5 {[%clk 0:00:42.6]} 39... Nc4 {[%clk 0:00:18.5]} 40. Nxg6 {[%clk 0:00:37.4]}
40... Nxe3+ {[%clk 0:00:16.3]} 41. Kg3 {[%clk 0:00:28.2]} 41... fxg6 {[%clk
0:00:03.4]} 42. Rxc7 {[%clk 0:00:27.1]} 42... Nxg4 {[%clk 0:00:04.2]} 43. Kxg4
{[%clk 0:00:26.2]} 43... Kb8 {[%clk 0:00:05]} 44. Rcd7 {[%clk 0:00:25.2]} 44...
Bc8 {[%clk 0:00:04.9]} 45. Rd6 {[%clk 0:00:21]} 45... Nb7 {[%clk 0:00:05]} 46.
Rb6 {[%clk 0:00:20.4]} 46... Rxf2 {[%clk 0:00:05.7]} 47. a5 {[%clk 0:00:19.1]}
47... Ka7 {[%clk 0:00:03.4]} 48. Rc6 {[%clk 0:00:19.3]} 48... Kb8 {[%clk
0:00:02.7]} 49. a6 {[%clk 0:00:18.1]} 49... Rb2 {[%clk 0:00:01.2]} 50. axb7
{[%clk 0:00:17.5]} 50... Bxb7 {[%clk 0:00:02.1]} 51. Rxe6 {[%clk 0:00:17.3]}
51... Rd2 {[%clk 0:00:02.2]} 52. Rb6 {[%clk 0:00:16.2]} 52... Rxd4+ {[%clk
0:00:02.1]} 53. Kg3 {[%clk 0:00:16.4]} 53... Rd3+ {[%clk 0:00:02.6]} 54. Kf4
{[%clk 0:00:16.7]} 54... Kc8 {[%clk 0:00:02.9]} 55. Rbxb7 {[%clk 0:00:16.4]} 1-0